bitfinex-derivatives/quotes_SOLF0:USTF0_20241231
["timestamp","ask_amount","ask_price","bid_price","bid_amount"]
[1735657848325,16.21929299,197.52,197.39,12.41929299]
[1735657848520,12.41929299,197.52,197.39,12.41929299]
[1735657848719,16.17929299,197.52,197.42,2.5357]
[1735657849420,2.5353,197.46,197.41,2.5359]
[1735657850317,12.41929299,197.49,197.36,16.17929299]
[1735657851021,2.5356,197.44,197.39,2.5361]
[1735657851319,12.41929299,197.49,197.36,16.17929299]
[1735657851716,2.5354,197.46,197.41,2.5358]
[1735657852023,12.41929299,197.49,197.41,2.5358]
[1735657852420,3.76,197.52,197.41,2.5358]
[1735657852626,12.41929299,197.51,197.41,2.5358]
[1735657853934,12.41929299,197.48,197.36,12.41929299]
[1735657854133,2.5355,197.45,197.36,16.17929299]
[1735657854332,12.41929299,197.48,197.36,16.17929299]
[1735657854532,12.41929299,197.48,197.39,2.5361]
[1735657854931,12.41929299,197.51,197.36,303.17929299]
[1735657855133,12.41929299,197.51,197.39,299.41929299]
[1735657855836,12.41929299,197.51,197.43,2.5356]
[1735657856536,12.41929299,197.51,197.4,2.536]
[1735657857237,2.5355,197.45,197.4,2.536]
[1735657857537,12.41929299,197.51,197.38,3.76]
[1735657857727,12.41929299,197.51,197.39,1.5571]
[1735657857931,2.5352,197.47,197.39,1.5571]
[1735657858336,12.41929299,197.51,197.42,2.5357]
[1735657858532,2.5353,197.46,197.42,2.5357]
[1735657858933,12.41929299,197.51,197.39,1.5571]
[1735657859134,2.5354,197.46,197.39,1.5571]
[1735657859540,2.5354,197.46,197.41,2.5359]
[1735657859940,2.5354,197.46,197.39,1.5571]
[1735657860439,2.5355,197.44,197.39,1.5571]
[1735657861036,2.5354,197.45,197.39,1.5571]
[1735657861541,2.5351,197.48,197.39,13.97639299]
[1735657861839,12.41929299,197.51,197.39,13.97639299]
[1735657862334,2.5352,197.47,197.39,13.97639299]
[1735657862539,12.41929299,197.54,197.45,2.5353]
[1735657862736,2.535,197.49,197.45,2.5353]
[1735657863043,12.41929299,197.54,197.45,2.5353]
[1735657863430,12.41929299,197.51,197.43,1.5479]
[1735657863934,12.41929299,197.51,197.39,1.5571]
[1735657864136,12.41929299,197.48,197.39,1.5571]
[1735657865140,2.5357,197.43,197.39,4.0932]
[1735657865742,2.5357,197.43,197.4,2.5359]
[1735657866139,12.41929299,197.51,197.39,13.97639299]
[1735657866442,12.41929299,197.54,197.42,12.41929299]
[1735657866636,2.5347,197.51,197.43,1.5297]
[1735657866832,2.5347,197.51,197.44,1.4588]
[1735657867033,26.62164621,197.58,197.44,1.4588]
[1735657867241,2.5345,197.52,197.45,12.41929299]
[1735657867940,2.5343,197.54,197.45,12.41929299]
[1735657868245,97.67459384,197.6,197.48,12.41929299]
[1735657868438,97.67459384,197.6,197.49,5.2185]
[1735657868639,97.67459384,197.6,197.51,12.41929299]
[1735657868839,97.67459384,197.6,197.49,5.2185]
[1735657869535,110.09388683,197.6,197.49,5.2185]
[1735657870550,110.09388683,197.6,197.49,3.76]
[1735657870551,2.5346,197.52,197.49,3.76]
[1735657870742,12.41929299,197.57,197.45,16.17929299]
[1735657870942,12.41929299,197.57,197.45,3.76]
[1735657871143,12.41929299,197.54,197.45,3.76]
[1735657872042,2.5344,197.53,197.45,3.76]
[1735657872352,12.41929299,197.57,197.45,3.76]
[1735657873440,2.535,197.48,197.45,3.76]
[1735657874143,2.5343,197.54,197.45,3.76]
[1735657874349,12.41929299,197.57,197.45,3.76]
[1735657874548,12.41929299,197.54,197.44,1.4588]
[1735657875747,2.5351,197.48,197.44,1.4588]
[1735657876153,3.62,197.53,197.4,2.536]
[1735657876353,2.5353,197.46,197.39,12.41929299]
[1735657876553,5.1811,197.53,197.42,12.41929299]
[1735657877150,5.1811,197.53,197.44,2.5355]
[1735657877352,12.41929299,197.51,197.39,12.41929299]
[1735657877553,12.41929299,197.51,197.38,1.5972]
[1735657877855,2.5357,197.43,197.38,1.5972]
[1735657878055,2.5357,197.43,197.39,2.5361]
[1735657878653,12.41929299,197.48,197.38,1.5972]
[1735657878853,2.536,197.41,197.38,1.5972]
[1735657879046,3.62,197.47,197.38,1.5972]
[1735657879457,2.5357,197.44,197.4,2.5359]
[1735657879660,3.62,197.47,197.4,2.5359]
[1735657880247,16.03929299,197.51,197.42,2.5357]
[1735657880462,16.03929299,197.51,197.39,12.41929299]
[1735657880755,16.03929299,197.51,197.4,3.62]
[1735657881458,2.5352,197.47,197.43,2.5356]
[1735657881857,16.03929299,197.51,197.4,3.62]
[1735657882058,2.5349,197.49,197.45,2.5354]
[1735657882254,3.62,197.51,197.4,290.62]
[1735657882456,2.5358,197.42,197.38,4.1334]
[1735657882755,12.41929299,197.48,197.38,1.5972]
[1735657883853,12.41929299,197.48,197.33,16.03929299]
[1735657884063,1.4689,197.47,197.33,17.63459299]
[1735657884260,2.5361,197.4,197.36,2.5365]
[1735657884858,2.5357,197.44,197.39,2.5361]
[1735657885051,3.62,197.45,197.36,12.41929299]
[1735657885363,16.03929299,197.45,197.33,17.63459299]
[1735657885557,2.5362,197.39,197.35,2.5367]
[1735657885752,16.03929299,197.45,197.33,14.01459299]
[1735657885952,16.03929299,197.45,197.36,2.5364]
[1735657885953,2.536,197.41,197.36,2.5364]
[1735657886561,3.62,197.45,197.33,301.01459299]
[1735657887262,3.62,197.45,197.36,2.5365]
[1735657887465,3.62,197.45,197.33,301.01459299]
[1735657887955,2.5363,197.39,197.34,2.5368]
[1735657888458,3.62,197.45,197.34,2.5368]
[1735657888761,12.41929299,197.43,197.33,1.5953]
[1735657888964,12.41929299,197.43,197.31,3.0157]
[1735657888965,12.41929299,197.4,197.27,12.41929299]
[1735657889265,12.41929299,197.37,197.27,1.5759]
[1735657889458,16.03929299,197.37,197.27,1.5759]
[1735657889859,16.03929299,197.37,197.27,4.1135]
[1735657890760,2.5368,197.34,197.28,2.5376]
[1735657890956,2.5368,197.34,197.27,1.5759]
[1735657890957,3.62,197.37,197.27,13.99519299]
[1735657891954,16.03929299,197.37,197.27,1.5759]
[1735657893153,2.5369,197.34,197.29,2.5374]
[1735657894052,2.537,197.33,197.29,2.5374]
[1735657894457,16.03929299,197.37,197.29,2.5374]
[1735657894661,2.537,197.33,197.29,2.5374]
[1735657895152,12.41929299,197.37,197.27,1.5759]
[1735657897164,2.5368,197.34,197.27,1.5759]
[1735657897361,12.41929299,197.37,197.27,1.5759]
[1735657898064,2.537,197.33,197.28,2.5375]
[1735657898263,12.41929299,197.37,197.27,1.5759]
[1735657899462,2.5368,197.34,197.27,4.1136]
[1735657899663,12.41929299,197.37,197.27,4.1136]
[1735657900065,2.5372,197.31,197.27,4.1136]
[1735657900260,12.41929299,197.37,197.27,1.5759]
[1735657900466,12.41929299,197.37,197.26,287.0]
[1735657901068,2.5374,197.3,197.25,5.64]
[1735657901270,12.41929299,197.37,197.25,3.1021]
[1735657901971,2.5374,197.3,197.25,5.64]
[1735657902863,12.41929299,197.34,197.25,2.5379]
[1735657903465,2.5375,197.29,197.25,2.5379]
[1735657904261,2.538,197.25,197.21,2.5384]
[1735657904465,12.41929299,197.31,197.16,6.5425]
[1735657904669,12.41929299,197.28,197.16,15.34179299]
[1735657904865,12.41929299,197.28,197.16,18.96179299]
[1735657905061,2.5384,197.22,197.16,18.96179299]
[1735657905461,2.5384,197.22,197.18,2.5388]
[1735657905964,2.5384,197.22,197.16,18.96179299]
[1735657906164,2.5384,197.22,197.19,2.5386]
[1735657907271,2.5384,197.22,197.18,2.5388]
[1735657907471,2.5384,197.22,197.16,2.9225]
[1735657907769,2.5385,197.21,197.18,2.5389]
[1735657908069,3.5,197.27,197.16,2.9225]
[1735657908274,2.539,197.17,197.15,1.4899]
[1735657908568,4.9914,197.27,197.15,1.4899]
[1735657908569,15.91929299,197.22,197.15,1.4899]
[1735657908774,15.91929299,197.22,197.1,3.1641]
[1735657909074,12.41929299,197.19,197.08,1.4961]
[1735657909373,12.41929299,197.16,197.07,6.97220554]
[1735657909570,15.91929299,197.16,197.07,9.51240554]
[1735657909767,15.91929299,197.16,197.07,2.5402]
[1735657910175,3.5,197.16,197.09,2.54]
[1735657910369,3.5,197.16,197.06,12.41929299]
[1735657910769,2.5394,197.14,197.09,2.5399]
[1735657910975,3.5,197.16,197.06,12.41929299]
[1735657911370,2.5393,197.15,197.09,2.5399]
[1735657911571,2.5393,197.15,197.06,12.41929299]
[1735657912674,6.0391,197.16,197.06,12.41929299]
[1735657912871,6.0391,197.16,197.07,3.5]
[1735657913073,2.5391,197.16,197.07,3.5]
[1735657913572,2.539,197.17,197.13,2.5395]
[1735657913774,12.41929299,197.23,197.12,12.41929299]
[1735657913971,4.24515493,197.24,197.13,5.0053]
[1735657914175,2.5386,197.21,197.16,2.5391]
[1735657914375,4.24515493,197.24,197.16,2.5391]
[1735657914570,16.66444792,197.24,197.16,2.5391]
[1735657915080,2.5386,197.2,197.15,2.5392]
[1735657915281,20.16444792,197.24,197.15,2.5392]
[1735657915471,7.74515493,197.24,197.15,2.5392]
[1735657915673,2.5386,197.21,197.15,2.5392]
[1735657916280,2.5387,197.2,197.15,2.5392]
[1735657917777,20.16444792,197.24,197.13,5.0053]
[1735657917778,4.24515493,197.24,197.14,12.41929299]
[1735657918181,2.5386,197.21,197.16,2.5391]
[1735657918382,4.24515493,197.24,197.16,2.5391]
[1735657918679,2.5385,197.21,197.16,2.5391]
[1735657919379,4.24515493,197.24,197.14,12.41929299]
[1735657920184,4.24515493,197.24,197.15,3.5]
[1735657920379,4.24515493,197.24,197.13,1.5053]
[1735657920884,2.5385,197.21,197.16,2.5391]
[1735657921789,4.24515493,197.24,197.13,4.5642]
[1735657921982,16.66444792,197.24,197.13,4.5642]
[1735657922383,2.5385,197.21,197.18,2.5389]
[1735657922679,4.24515493,197.24,197.15,12.41929299]
[1735657922883,2.5386,197.21,197.16,2.539]
[1735657923078,4.24515493,197.24,197.16,2.539]
[1735657923284,16.66444792,197.24,197.16,2.539]
[1735657923476,2.5386,197.21,197.17,2.539]
[1735657923681,16.66444792,197.24,197.13,4.5642]
[1735657923979,2.5382,197.23,197.17,2.539]
[1735657924284,12.41929299,197.27,197.17,3.5]
[1735657924791,2.5381,197.24,197.17,6.039]
[1735657924983,12.41929299,197.27,197.17,6.039]
[1735657925380,12.41929299,197.27,197.17,3.5]
[1735657925588,12.41929299,197.3,197.17,15.91929299]
[1735657925788,12.41929299,197.3,197.2,12.41929299]
[1735657925984,12.41929299,197.3,197.22,2.5383]
[1735657926189,12.41929299,197.3,197.21,1.4606]
[1735657926388,2.5376,197.28,197.21,1.4606]
[1735657926686,99.26912198,197.32,197.21,1.4606]
[1735657926885,99.26912198,197.32,197.21,3.0425]
[1735657927186,99.26912198,197.32,197.23,2.5381]
[1735657927390,3.5,197.33,197.23,12.41929299]
[1735657927588,12.41929299,197.36,197.23,299.41929299]
[1735657927785,13.97549299,197.39,197.31,2.5372]
[1735657927985,12.41929299,197.39,197.31,2.5372]
[1735657928688,12.41929299,197.39,197.27,15.91929299]
[1735657928689,2.5368,197.35,197.3,2.5373]
[1735657929197,14.95559299,197.39,197.33,2.5369]
[1735657929392,12.41929299,197.39,197.33,2.5369]
[1735657930285,12.41929299,197.39,197.27,15.91929299]
[1735657930892,2.5367,197.35,197.3,2.5373]
[1735657931088,12.41929299,197.39,197.27,15.91929299]
[1735657931296,12.41929299,197.36,197.24,3.5]
[1735657931497,12.41929299,197.36,197.26,2.5378]
[1735657931698,12.41929299,197.36,197.24,3.5]
[1735657932195,12.41929299,197.39,197.25,12.41929299]
[1735657933086,12.41929299,197.39,197.31,2.5371]
[1735657933292,12.41929299,197.39,197.28,12.41929299]
[1735657933590,12.41929299,197.39,197.29,1.558]
[1735657933887,2.5365,197.37,197.32,2.537]
[1735657935696,12.41929299,197.39,197.32,2.537]
[1735657935899,2.5366,197.36,197.32,2.537]
[1735657937589,12.41929299,197.39,197.31,2.5372]
[1735657937789,12.41929299,197.39,197.3,1.5243]
[1735657937989,12.41929299,197.36,197.23,288.5508]
[1735657938195,12.41929299,197.33,197.24,1.551]
[1735657938798,2.5377,197.28,197.24,1.551]
[1735657939001,12.41929299,197.33,197.24,1.551]
[1735657939197,2.5373,197.31,197.25,2.5379]
[1735657939395,2.5373,197.31,197.24,1.551]
[1735657939801,2.5374,197.3,197.26,2.5378]
[1735657941201,12.41929299,197.33,197.22,287.0]
[1735657941399,3.42,197.36,197.25,12.41929299]
[1735657941796,2.537,197.33,197.28,2.5375]
[1735657941995,15.83929299,197.36,197.28,2.5375]
[1735657942900,12.41929299,197.29,197.1,314.88882218]
[1735657943098,3.42,197.3,197.17,299.41929299]
[1735657943297,15.83929299,197.32,197.2,12.41929299]
[1735657943493,52.76,197.38,197.21,289.9701]
[1735657943694,12.41929299,197.36,197.23,12.41929299]
[1735657943898,12.41929299,197.36,197.24,1.4908]
[1735657944504,15.83929299,197.36,197.24,1.4908]
[1735657945106,15.83929299,197.36,197.24,288.4908]
[1735657945302,12.41929299,197.33,197.24,288.4908]
[1735657945504,2.5374,197.3,197.24,288.4908]
[1735657945908,15.83929299,197.36,197.24,288.4908]
[1735657946105,15.83929299,197.36,197.24,291.9108]
[1735657946306,2.5369,197.34,197.24,291.9108]
[1735657946606,15.83929299,197.36,197.24,291.9108]
[1735657946800,2.537,197.33,197.24,291.9108]
[1735657947003,3.42,197.37,197.26,12.41929299]
[1735657947707,2.5368,197.35,197.26,299.41929299]
[1735657948201,12.41929299,197.42,197.34,2.5368]
[1735657948507,3.42,197.41,197.3,3.2032]
[1735657948709,2.5365,197.37,197.33,2.5369]
[1735657949100,12.41929299,197.39,197.3,3.2032]
[1735657949299,3.42,197.41,197.24,291.9108]
[1735657949300,12.41929299,197.36,197.24,291.9108]
[1735657949499,3.42,197.35,197.25,1.465]
[1735657949900,12.41929299,197.39,197.26,12.41929299]
[1735657950410,2.5367,197.35,197.31,2.5372]
[1735657950806,12.41929299,197.39,197.26,299.41929299]
[1735657951008,2.5366,197.36,197.26,299.41929299]
[1735657951307,12.41929299,197.42,197.29,299.41929299]
[1735657951513,15.83929299,197.45,197.32,299.41929299]
[1735657951805,12.41929299,197.45,197.33,3.0225]
[1735657952006,2.5359,197.42,197.37,2.5363]
[1735657952308,12.41929299,197.45,197.37,2.5363]
[1735657953503,2.5359,197.42,197.37,2.5363]
[1735657955206,2.5359,197.42,197.38,2.5363]
[1735657955713,3.42,197.46,197.37,2.5363]
[1735657955714,2.5356,197.44,197.37,2.5363]
[1735657955909,2.5356,197.44,197.35,12.41929299]
[1735657956106,2.5356,197.44,197.35,15.83929299]
[1735657956712,2.5356,197.44,197.39,2.5361]
[1735657956910,97.66642687,197.47,197.35,15.83929299]
[1735657957215,3.42,197.5,197.38,12.41929299]
[1735657957609,2.5353,197.46,197.38,12.41929299]
[1735657958308,12.41929299,197.54,197.41,299.41929299]
[1735657958509,15.83929299,197.54,197.42,294.9647]
[1735657958813,2.5344,197.53,197.44,12.41929299]
[1735657959011,4.23881581,197.55,197.44,12.41929299]
[1735657959216,97.61634776,197.56,197.51,2.5346]
[1735657959615,100.15034776,197.56,197.47,15.83929299]
[1735657959911,12.41929299,197.6,197.54,2.5342]
[1735657960310,2.5338,197.58,197.51,3.0425]
[1735657960716,36.67699808,197.63,197.53,2.5344]
[1735657960916,12.41929299,197.6,197.51,3.0425]
[1735657961113,15.83929299,197.63,197.51,3.0425]
[1735657961409,12.41929299,197.66,197.53,299.41929299]
[1735657961617,3.42,197.68,197.56,12.41929299]
[1735657961814,12.41929299,197.69,197.61,2.5333]
[1735657962114,3.42,197.71,197.59,15.83929299]
[1735657962312,20.83770509,197.74,197.62,12.41929299]
[1735657962618,2.532,197.72,197.66,2.5327]
[1735657962815,20.83770509,197.74,197.65,12.41929299]
[1735657963117,20.83770509,197.74,197.67,2.5326]
[1735657963309,20.83770509,197.74,197.65,12.41929299]
[1735657963508,23.36950509,197.74,197.68,2.5324]
[1735657963714,12.41929299,197.78,197.65,12.41929299]
[1735657963913,15.83929299,197.81,197.68,12.41929299]
[1735657964112,15.83929299,197.81,197.71,12.41929299]
[1735657964315,3.42,197.81,197.69,4.9892]
[1735657964914,2.5312,197.78,197.72,2.5319]
[1735657965113,3.42,197.81,197.69,4.9892]
[1735657965612,2.5309,197.81,197.74,2.5316]
[1735657966623,23.09167039,197.85,197.72,2.5319]
[1735657967120,2.531,197.8,197.73,2.5318]
[1735657967614,23.09167039,197.85,197.69,4.9892]
[1735657967815,19.67167039,197.85,197.72,2.5319]
[1735657968123,23.13167039,197.85,197.72,2.5319]
[1735657968416,23.13167039,197.85,197.69,5.0292]
[1735657968417,2.5317,197.74,197.69,5.0292]
[1735657968920,2.5317,197.74,197.69,1.5692]
[1735657969119,19.67167039,197.79,197.63,22.67327039]
[1735657969322,19.67167039,197.79,197.64,3.46]
[1735657969526,2.5316,197.75,197.64,5.9929]
[1735657969821,19.67167039,197.76,197.64,3.46]
[1735657970021,19.67167039,197.76,197.63,6.4616]
[1735657970614,2.5319,197.73,197.63,8.9947]
[1735657970917,3.46,197.75,197.63,8.9947]
[1735657971823,3.46,197.75,197.63,6.4616]
[1735657972525,2.5323,197.7,197.63,8.9946]
[1735657973326,3.46,197.75,197.6,287.0]
[1735657973725,3.46,197.75,197.61,4.4909]
[1735657974026,2.5321,197.71,197.62,3.46]
[1735657974419,2.5321,197.71,197.65,2.5327]
[1735657975025,3.46,197.75,197.65,2.5327]
[1735657975226,2.5322,197.7,197.65,2.5327]
[1735657975727,19.67167039,197.79,197.63,19.67167039]
[1735657975920,3.46,197.78,197.63,19.67167039]
[1735657976121,3.46,197.78,197.66,19.67167039]
[1735657976423,3.46,197.78,197.7,2.5322]
[1735657976817,3.46,197.79,197.7,2.5322]
[1735657977021,19.67167039,197.82,197.7,2.5322]
[1735657977324,3.46,197.82,197.67,3.46]
[1735657977724,2.5312,197.79,197.73,2.5317]
[1735657979121,3.46,197.82,197.73,2.5317]
[1735657979323,2.5312,197.78,197.73,2.5317]
[1735657981026,2.5312,197.78,197.74,2.5317]
[1735657982230,3.46,197.84,197.71,3.46]
[1735657982430,3.46,197.84,197.72,2.9591]
[1735657982933,2.5313,197.77,197.72,2.5318]
[1735657983831,6.10389476,197.86,197.71,3.46]
[1735657984131,19.67167039,197.92,197.74,19.67167039]
[1735657984431,19.67167039,197.92,197.77,19.67167039]
[1735657984432,23.13167039,197.92,197.77,19.67167039]
[1735657984628,19.67167039,197.95,197.78,6.557]
[1735657984931,72.31167039,198.0,197.78,6.557]
[1735657984932,3.46,197.94,197.8,19.67167039]
[1735657985233,3.46,197.95,197.81,1.4733]
[1735657985424,19.67167039,197.98,197.83,19.67167039]
[1735657985425,23.13167039,197.98,197.83,19.67167039]
[1735657985625,3.46,197.98,197.84,3.46]
[1735657985824,19.67167039,198.01,197.92,2.5293]
[1735657985825,2.5288,197.97,197.92,2.5293]
[1735657986029,3.46,198.0,197.86,19.67167039]
[1735657986433,2.5286,197.98,197.93,2.5292]
[1735657986733,3.46,198.0,197.89,3.46]
[1735657986932,3.46,198.0,197.9,1.5357]
[1735657987640,2.5294,197.93,197.9,1.5357]
[1735657988438,3.46,198.0,197.85,3.46]
[1735657988739,3.46,198.0,197.87,2.53]
[1735657989138,2.5294,197.92,197.87,2.53]
[1735657990040,3.46,197.95,197.86,1.5357]
[1735657991641,3.46,197.95,197.86,4.0658]
[1735657992544,3.46,197.95,197.86,1.5357]
[1735657992842,23.13167039,197.95,197.81,1.4733]
[1735657993243,2.5295,197.91,197.83,2.5304]
[1735657993444,23.13167039,197.95,197.81,1.4733]
[1735657993946,19.67167039,198.02,197.84,19.67167039]
[1735657994135,3.46,198.0,197.84,19.67167039]
[1735657994745,19.67167039,198.02,197.84,19.67167039]
[1735657994948,3.46,198.01,197.84,19.67167039]
[1735657996136,2.529,197.96,197.84,19.67167039]
[1735657996448,3.46,198.01,197.84,19.67167039]
[1735657996639,2.5285,197.99,197.88,19.67167039]
[1735657996841,3.0202249,198.04,197.91,19.67167039]
[1735657997043,3.0202249,198.04,197.92,1.5461]
[1735657997237,2.5284,198.01,197.93,3.38]
[1735657997840,2.5284,198.01,197.97,2.5286]
[1735657998243,3.38,198.06,197.98,2.5286]
[1735657998446,24.67167039,198.1,197.94,19.67167039]
[1735657998836,5.0,198.1,197.97,19.67167039]
[1735657999040,5.0,198.1,197.98,3.38]
[1735657999346,2.5276,198.06,198.02,2.528]
[1735657999547,5.0,198.1,197.99,3.0496]
[1735658000341,5.0,198.1,198.0,19.67167039]
[1735658000742,7.5271,198.1,198.06,2.5276]
[1735658000950,5.0,198.1,198.06,2.5276]
[1735658001247,5.0,198.1,198.03,3.38]
[1735658001547,5.0,198.1,198.05,2.5277]
[1735658002240,5.0,198.1,198.03,23.05167039]
[1735658002838,5.0,198.1,198.09,2.5272]
[1735658003042,97.29676521,198.21,198.09,3.38]
[1735658003645,3.38,198.22,198.09,3.38]
[1735658004742,2.5263,198.17,198.11,2.5268]
[1735658004938,3.38,198.26,198.09,23.05167039]
[1735658005250,23.05167039,198.26,198.1,1.4475]
[1735658005645,19.67167039,198.26,198.12,19.67167039]
[1735658006651,23.05167039,198.26,198.12,19.67167039]
[1735658006844,19.67167039,198.23,198.1,1.4475]
[1735658007044,19.67167039,198.2,198.06,3.38]
[1735658007345,3.38,198.19,198.06,23.05167039]
[1735658007845,2.5266,198.15,198.09,2.5272]
[1735658008250,3.38,198.19,198.06,3.38]
[1735658008455,2.5266,198.14,198.08,2.5273]
[1735658008749,3.38,198.19,198.06,3.38]
[1735658008950,2.5263,198.17,198.11,2.5269]
[1735658009148,3.38,198.21,198.06,23.05167039]
[1735658009353,19.67167039,198.2,198.06,23.05167039]
[1735658009551,2.5265,198.15,198.09,2.5272]
[1735658009853,19.67167039,198.2,198.06,3.38]
[1735658010155,1.4607,198.19,198.06,3.38]
[1735658010454,19.67167039,198.17,198.01,3.091]
[1735658010652,19.67167039,198.14,198.01,3.091]
[1735658010954,19.67167039,198.11,197.98,3.38]
[1735658011149,19.67167039,198.08,197.94,6.4741]
[1735658011349,2.5285,198.0,197.94,9.0032]
[1735658012055,2.5286,197.98,197.94,4.9716]
[1735658012248,3.38,198.01,197.87,310.05167039]
[1735658012447,2.5286,197.98,197.88,1.5916]
[1735658012648,3.38,198.01,197.88,1.5916]
[1735658013554,2.5288,197.97,197.92,2.5294]
[1735658013848,2.5288,197.97,197.88,1.5916]
[1735658014054,2.5289,197.96,197.91,2.5295]
[1735658014251,3.38,198.01,197.88,1.5916]
[1735658014455,1.4644,198.0,197.88,1.5916]
[1735658014652,2.5291,197.95,197.89,2.5297]
[1735658015351,2.5293,197.93,197.88,4.1215]
[1735658015653,3.38,197.96,197.88,1.5916]
[1735658015954,2.5291,197.95,197.89,2.5298]
[1735658016344,3.38,197.96,197.88,1.5916]
[1735658016546,3.38,197.96,197.81,289.9967]
[1735658016547,3.38,197.96,197.81,21.16587039]
[1735658016751,19.67167039,197.94,197.78,60.31565165]
[1735658017351,19.67167039,197.94,197.78,63.69565165]
[1735658017554,19.67167039,197.94,197.78,350.69565165]
[1735658017757,19.67167039,197.97,197.8,19.67167039]
[1735658017957,3.38,197.96,197.83,19.67167039]
[1735658018351,2.5291,197.94,197.88,2.5299]
[1735658018752,2.5293,197.93,197.86,2.53]
[1735658019059,3.38,197.96,197.82,290.38]
[1735658019259,2.5294,197.92,197.83,2.5305]
[1735658019460,3.38,197.91,197.83,2.5305]
[1735658020257,19.67167039,197.9,197.78,60.31565165]
[1735658020460,21.15877039,197.9,197.78,4.03066142]
[1735658020959,2.5304,197.85,197.78,4.03066142]
[1735658022254,2.5304,197.84,197.79,2.531]
[1735658022853,2.5304,197.84,197.78,4.03066142]
[1735658023254,2.5309,197.8,197.76,4.5632]
[1735658023551,3.38,197.81,197.72,2.5319]
[1735658023756,2.5314,197.77,197.69,19.67167039]
[1735658024360,3.38,197.81,197.69,19.67167039]
[1735658025853,3.38,197.81,197.71,2.5323]
[1735658026957,2.5317,197.76,197.71,2.5323]
[1735658027161,3.38,197.81,197.72,2.5321]
[1735658028164,19.67167039,197.86,197.73,2.5321]
[1735658028356,3.4,197.85,197.69,19.67167039]
[1735658028657,2.5311,197.81,197.69,19.67167039]
[1735658028855,2.5311,197.81,197.75,2.5317]
[1735658029158,19.67167039,197.89,197.72,23.07167039]
[1735658029352,3.4,197.88,197.77,2.5314]
[1735658030664,3.4,197.88,197.74,2.5318]
[1735658030963,19.67167039,197.89,197.72,310.07167039]
[1735658031163,2.531,197.82,197.76,2.5316]
[1735658032162,2.531,197.82,197.72,310.07167039]
[1735658032359,2.531,197.81,197.77,2.5315]
[1735658032963,2.5314,197.79,197.74,2.5318]
[1735658033969,3.4,197.83,197.72,23.07167039]
[1735658034161,2.531,197.82,197.72,23.07167039]
[1735658034868,3.4,197.83,197.77,2.5315]
[1735658035060,2.5311,197.81,197.77,2.5315]
[1735658036663,3.4,197.83,197.78,2.5314]
[1735658036664,2.5309,197.83,197.78,2.5314]
[1735658037065,2.5309,197.83,197.72,310.07167039]
[1735658037268,2.5309,197.83,197.8,2.5312]
[1735658037469,2.5307,197.84,197.8,2.5312]
[1735658038970,2.5308,197.83,197.8,2.5312]
[1735658040369,19.67167039,197.89,197.8,2.5312]
[1735658040570,2.5308,197.83,197.8,2.5312]
[1735658041477,3.4,197.88,197.72,306.67167039]
[1735658041675,3.4,197.88,197.72,287.0]
[1735658041876,19.67167039,197.85,197.67,291.5477]
[1735658042174,2.5318,197.76,197.72,2.5321]
[1735658042965,3.4,197.79,197.67,7.9477]
[1735658043572,2.5318,197.76,197.69,2.5325]
[1735658043766,3.4,197.79,197.67,7.9477]
[1735658044173,2.532,197.74,197.67,7.9477]
[1735658044475,3.4,197.79,197.67,4.5477]
[1735658044676,3.4,197.79,197.69,2.5325]
[1735658044976,3.4,197.79,197.67,4.5477]
[1735658045376,2.532,197.74,197.7,2.5324]
[1735658046572,2.5323,197.71,197.67,4.5477]
[1735658046876,3.4,197.79,197.67,4.5477]
[1735658047077,3.4,197.79,197.69,2.5325]
[1735658047471,3.4,197.79,197.67,4.5477]
[1735658047675,3.4,197.79,197.68,2.5327]